[Event "Karel Janecek Open 2025"]
[Site "Prague"]
[Date "2025.03.04"]
[Round "6.6"]
[White "Eren, Ataberk"]
[Black "Vetoshko, Volodymyr"]
[Result "1-0"]
[Annotator "TA"]
[ECO "C70"]
[WhiteElo "2402"]
[BlackElo "2529"]
[PlyCount "73"]
[EventDate "2025.02.21"]
[EventType "swiss"]
[EventCountry "CZE"]
[SourceTitle "playchess.com"]
[Source "ChessBase"]
[SourceQuality "1"]
[TimeControl "40/5400+30:1800+30"]

{[%evp 9,73,41,46,32,46,49,54,55,67,58,63,33,37,43,39,29,21,25,30,14,30,18,31,15,16,10,23,9,19,18,33,24,38,38,52,37,60,57,40,0,21,30,28,20,27,19,22,12,20,16,8,5,34,15,50,61,115,85,275,264,403,406,679,624,907,806]} 1. e4 {[%emt 0:02:59]} e5 {[%emt 0:00:47]} 2. Nf3 {[%emt 0:00:05]} Nc6 {[%emt 0:00:05]} 3. Bb5 {[%emt 0:00:06]} a6 {[%emt 0:00:05]} 4. Ba4 {[%emt 0:00:03]} Nge7 {[%emt 0:00:06]} 5. Nc3 {[%emt 0:00:20]} d6 {[%emt 0:00:19]} 6. O-O {[%emt 0:02:44] C70: Ruy Lopez: 3...a6 4 Ba4, Norwegian and Delayed Schliemann.} Rb8 {[%emt 0:00:09]} 7. Re1 {[%emt 0:11:20]} Ng6 {[%emt 0:03:29]} 8. Nd5 $146 {[%emt 0:16:14] White is slightly better.} (8. h3 Be7 9. Nd5 b5 10. Bb3 Na5 11. d4 Nxb3 12. axb3 O-O 13. Bd2 c6 14. Ba5 {1-0 Obgolts,E (2448)-Aradhya,G (2344) Pavlodar op-A 2023 (9)}) 8... Be7 {[%emt 0:04:06]} 9. c3 {[%emt 0:01:50][%cal Bc2c3,Bc3d4][%mdl 32] White is much more active.} O-O {[%emt 0:01:04]} 10. Ne3 {[%emt 0:05:00]} Nh4 {[%emt 0:19:10]} 11. Nxh4 {[%emt 0:01:25]} Bxh4 {[%emt 0:00:02]} 12. d4 {[%emt 0:00:39]} exd4 {[%emt 0:08:34]} 13. cxd4 {[%emt 0:00:12]} b5 {[%emt 0:06:21]} 14. Bc2 {[%emt 0:00:46]} Bf6 {[%emt 0:00:52]} 15. d5 {[%emt 0:00:51]} Nb4 {[%emt 0:02:51]} 16. Bd2 {[%emt 0:25:41]} c5 {[%emt 0:02:59]} 17. dxc6 {[%emt 0:00:23]} Nxc6 {[%emt 0:00:15]} 18. Rb1 {[%emt 0:00:38]} Be6 {[%emt 0:05:09]} 19. Bb3 {[%emt 0:00:49]} Re8 {[%emt 0:07:09]} (19... Be5 {is more complex.} 20. Nd5 Qh4 21. g3 Qh3) 20. Bd5 {[%emt 0:05:23]} Ne7 {[%emt 0:02:38]} 21. Bxe6 {[%emt 0:07:08]} fxe6 {[%emt 0:00:05]} 22. Ng4 {[%emt 0:07:22]} Bd4 {[%emt 0:03:17]} 23. Bg5 {[%emt 0:03:23]} Qb6 {[%emt 0:02:41]} 24. Qb3 {[%emt 0:00:20]} Ng6 {[%emt 0:03:09]} 25. Rbd1 {[%emt 0:00:30]} Ne5 {[%emt 0:03:26]} 26. Be3 $1 {[%emt 0:01:28]} Bxe3 {[%emt 0:00:18]} 27. Nxe3 {[%emt 0:00:03]} Rbc8 {[%emt 0:01:20]} 28. Qb4 {[%emt 0:01:51]} Rc6 {[%emt 0:03:35]} 29. b3 {[%emt 0:00:22]} Rec8 {[%emt 0:05:19]} 30. Kh1 {[%emt 0:00:55]} Rf8 {[%emt 0:03:57]} 31. Qd2 {[%emt 0:00:37][%cal Of2f4]} Qc7 {[%emt 0:04:40]} 32. f4 {[%emt 0:00:53]} Nd7 {[%emt 0:00:55] [#]} (32... Rxf4 $2 {too greedy.} 33. Nd5 exd5 34. Qxf4 $18) ({Black should try} 32... Nf7 $14) 33. e5 $1 $16 {[%emt 0:00:58][%cal Re5d6]} Nc5 $2 {[%emt 0:03:28] Black cannot hold the game after this.} (33... Rd8 $16) 34. exd6 $18 {[%emt 0:00:24]} Qd7 {[%emt 0:00:04]} (34... Qf7 {keeps fighting.} 35. d7 Rd8) 35. Ng4 {[%emt 0:00:41]} Rd8 {[%emt 0:02:25]} (35... Qd8 $142 36. Ne5 Rb6) 36. Ne5 {[%emt 0:00:16][%csl LRc6,LRd7]} Qxd6 {[%emt 0:00:08]} 37. Qe2 {[%emt 0:00:10] Weighted Error Value: White=0.05 (flawless) /Black=0.43  Loses game:     	---       	Black=1      Mistake:       	---       	Black=3      Inaccurate:     	White=2     	Black=3      OK:         	White=13    	Black=11     Best:        	White=3     	Black=1      Strong:       	White=2     	---} 1-0

[Event "Karel Janecek Open 2025"]
[Site "Prague"]
[Date "2025.03.04"]
[Round "6.7"]
[White "Noe, Christopher"]
[Black "Stinka, Jakub"]
[Result "1/2-1/2"]
[Annotator "TA"]
[ECO "E51"]
[WhiteElo "2511"]
[BlackElo "2377"]
[PlyCount "75"]
[EventDate "2025.02.21"]
[EventType "swiss"]
[EventCountry "CZE"]
[SourceTitle "playchess.com"]
[Source "ChessBase"]
[SourceQuality "1"]
[TimeControl "40/5400+30:1800+30"]

{[%evp 13,75,0,-4,-8,18,13,22,10,22,6,8,31,13,18,24,0,38,10,10,9,9,12,8,8,3,0,9,4,6,0,0,0,0,0,0,0,66,62,42,58,106,107,108,104,97,0,1,0,115,51,51,63,52,32,27,23,37,30,27,28,110,12,22,0]} 1. d4 {[%emt 0:01:05]} Nf6 {[%emt 0:00:06]} 2. c4 {[%emt 0:00:05]} e6 {[%emt 0:00:04]} 3. Nc3 {[%emt 0:01:06]} Bb4 {[%emt 0:00:22]} 4. Bd2 {[%emt 0:00:08]} O-O {[%emt 0:00:39]} 5. e3 {[%emt 0:00:37]} d5 {[%emt 0:01:16]} 6. Nf3 {[%emt 0:00:08]} b6 {[%emt 0:00:44]} 7. cxd5 {[%emt 0:00:07]} exd5 {[%emt 0:00:10]} 8. Bd3 {[%emt 0:00:27] E51: Nimzo-Indian: Rubinstein: 4...0-0 5 Nf3 d5.} Ba6 {[%emt 0:07:35]} 9. Bxa6 {[%emt 0:11:36]} Nxa6 {[%emt 0:00:06]} 10. O-O {[%emt 0:01:49]} c5 {[%emt 0:03:54]} 11. Qa4 {[%emt 0:15:12]} Qc8 {[%emt 0:02:47]} 12. dxc5 {[%emt 0:21:49]} bxc5 {[%emt 0:00:46]} 13. Rac1 {[%emt 0:00:31]} Qb7 {[%emt 0:06:30]} 14. Rfd1 {[%emt 0:00:13]} Rfd8 {[%emt 0:10:57]} 15. Ne5 $146 {[%emt 0:08:02]} ({Predecessor:} 15. a3 Bxc3 16. Bxc3 Ne4 17. Ba5 Re8 18. b4 cxb4 19. axb4 Rac8 20. Nd4 Nb8 21. Qb5 {1-0 Cvitan,O (2496)-Berkovich,M (2339) Bled Planinc Memorial 1st blitz 2018 (4)}) 15... Rac8 {[%emt 0:06:44]} 16. Qb5 {[%emt 0:06:00]} Qb6 {[%emt 0:16:03]} 17. Qxb6 {[%emt 0:03:26]} axb6 {[%emt 0:00:03]} 18. Na4 {[%emt 0:05:30]} Bxd2 {[%emt 0:00:51]} 19. Rxd2 {[%emt 0:00:06]} Ne4 {[%emt 0:02:17]} 20. Rdd1 {[%emt 0:00:39]} f6 $1 {[%emt 0:06:43]} 21. f3 $36 {[%emt 0:01:32][%cal Oa4b6][%mdl 2048] White has good play.} Nd6 {[%emt 0:06:56] [#] and ...b5 would now be decisive} (21... fxe5 22. fxe4 d4 (22... b5 23. Nb6 $16) 23. Nxb6) 22. Ng4 {[%emt 0:07:20]} h5 $1 {[%emt 0:01:31]} 23. Nf2 {[%emt 0:04:53]} Nc4 {[%emt 0:02:06]} 24. e4 {[%emt 0:00:14]} b5 {[%emt 0:03:17]} (24... Nb4 $11) 25. Rxd5 $14 {[%emt 0:01:53]} (25. exd5 $6 Nb4 $11) 25... Rxd5 {[%emt 0:01:56]} 26. exd5 {[%emt 0:00:00][%cal Of2d3]} Ne3 {[%emt 0:01:09]} (26... Nd6 $14 {might be stronger.} 27. Nb6 Rb8) 27. Nb6 $16 {[%emt 0:01:31]} Rb8 {[%emt 0:03:24]} (27... Rd8 $2 28. Ne4 $18) 28. Nd7 {[%emt 0:00:39][%csl LRb8,LRc5]} Rc8 {[%emt 0:00:16]} 29. Nb6 {[%emt 0:00:05]} (29. d6 $16) 29... Rb8 $1 $11 {[%emt 0:00:10]} (29... Rd8 $6 30. Ne4 c4 (30... Nxd5 $2 31. Rd1 $18) 31. Re1 $18) 30. Nd7 {[%emt 0:00:05]} ({White should try} 30. Rc3 $11) 30... Rc8 $16 {[%emt 0:00:03]} 31. Ne4 {[%emt 0:02:39]} (31. d6 $16) 31... c4 $14 {[%emt 0:01:25] [#]} 32. a4 $1 {[%emt 0:04:00]} bxa4 {[%emt 0:03:26][%cal Oa4a3]} 33. d6 {[%emt 0:00:17]} Rd8 {[%emt 0:02:07]} 34. Nb6 {[%emt 0:01:40][%csl LRa4,LRc4][%cal Og1f2] And now Kf2! would win.} f5 {[%emt 0:01:33]} 35. Kf2 {[%emt 0:00:01]} ({Stronger than} 35. Nxc4 Nxc4 36. Rxc4 fxe4 37. Rxa4 Rxd6 38. Rxe4 Nc5 $19) 35... fxe4 {[%emt 0:01:22]} 36. Kxe3 {[%emt 0:00:06]} exf3 {[%emt 0:01:03]} (36... Rxd6 $11 37. Nxa4 (37. Nxc4 Rg6 $11) 37... exf3) 37. gxf3 {[%emt 0:00:13] White is more active.} (37. Nxc4 $16 fxg2 38. Rg1) 37... Rxd6 $11 {[%emt 0:00:40]} 38. Nxc4 {[%emt 0:02:23] Weighted Error Value: White=0.15 (very precise) /Black=0.10 (very precise)   Mistake:       	White=4     	Black=3      Inaccurate:     	White=1     	Black=2      OK:         	White=15    	Black=11     Best:        	White=1     	Black=3      Strong:       	---       	Black=3} 1/2-1/2

[Event "Karel Janecek Open 2025"]
[Site "Prague"]
[Date "2025.03.04"]
[Round "6.8"]
[White "Kistrup, Nicolai"]
[Black "Popovic, Dusan"]
[Result "1-0"]
[Annotator "TA"]
[ECO "C41"]
[WhiteElo "2374"]
[BlackElo "2494"]
[PlyCount "153"]
[EventDate "2025.02.21"]
[EventType "swiss"]
[EventCountry "CZE"]
[SourceTitle "playchess.com"]
[Source "ChessBase"]
[SourceQuality "1"]
[TimeControl "40/5400+30:1800+30"]

{[%evp 15,153,37,45,8,37,31,32,17,25,12,8,15,24,27,30,-6,0,0,0,0,0,0,0,6,6,3,0,-5,7,0,5,7,7,8,10,0,12,0,7,0,8,0,24,0,19,17,15,18,26,0,35,0,16,18,18,0,0,0,0,0,0,0,0,0,0,0,3,0,0,0,306,307,289,297,283,0,69,0,346,345,325,317,347,353,531,540,722,683,773,779,635,456,530,452,434,321,314,318,305,310,304,279,562,562,554,545,848,466,568,568,598,338,450,408,634,404,683,996,1033,732,968,906,1008,957,799,651,1462,1479,1325,1294,1575,1568,1439,1429,1404,1318,1251,1200,982,900]} 1. e4 {[%emt 0:00:03]} d6 {[%emt 0:00:05]} 2. d4 {[%emt 0:00:12]} Nf6 {[%emt 0:00:07]} 3. Nc3 {[%emt 0:00:11]} e5 {[%emt 0:00:07]} 4. Nf3 {[%emt 0:00:05]} Nbd7 {[%emt 0:00:15]} 5. Bc4 {[%emt 0:01:05]} Be7 {[%emt 0:00:26]} 6. O-O {[%emt 0:00:48]} O-O {[%emt 0:00:13]} 7. Re1 {[%emt 0:00:52]} c6 {[%emt 0:00:06]} 8. a4 {[%emt 0:00:20]} h6 {[%emt 0:00:16]} 9. Be3 {[%emt 0:11:36] C41: Philidor Defence.} Re8 {[%emt 0:00:32]} 10. h3 {[%emt 0:04:44]} exd4 {[%emt 0:00:12]} 11. Bxd4 $1 {[%emt 0:06:00] White is slightly better. The main line 11.Bxd4 scores better than 11.Nxd4.} Nf8 {[%emt 0:00:12]} 12. Qd3 {[%emt 0:17:09]} Be6 {[%emt 0:01:00]} 13. Rad1 {[%emt 0:13:20]} N6d7 $146 {[%emt 0:01:14]} (13... a6 14. Bb3 Bxb3 15. cxb3 Ne6 16. Qc2 Bf8 17. e5 Nxd4 18. Rxd4 Qb6 19. a5 Qa7 {1-0 Praggnanandhaa,R (2747)-Abdusattorov,N (2766) Warsaw Superbet Rapid 2024 (3)}) 14. Ne2 $1 {[%emt 0:07:01]} Qa5 {[%emt 0:12:50]} 15. b3 {[%emt 0:07:50]} (15. Bc3 {keeps more tension.} Bxc4 16. Qxc4 Qc5 17. Qb3) 15... Nc5 {[%emt 0:02:46]} 16. Bxc5 {[%emt 0:01:21]} Qxc5 {[%emt 0:00:07]} 17. Bxe6 {[%emt 0:02:51]} Nxe6 {[%emt 0:01:07]} 18. Ned4 {[%emt 0:04:45]} Nxd4 {[%emt 0:04:10]} 19. Nxd4 {[%emt 0:00:29]} g6 {[%emt 0:00:50]} 20. Nf3 {[%emt 0:03:27]} Bf8 {[%emt 0:08:00]} 21. Re2 {[%emt 0:06:52]} Rad8 {[%emt 0:08:55]} 22. c4 {[%emt 0:00:44]} Bg7 {[%emt 0:05:57]} 23. g3 {[%emt 0:03:07]} Re6 {[%emt 0:10:56]} 24. Kg2 {[%emt 0:00:33]} Rde8 {[%emt 0:01:06]} 25. Rde1 {[%emt 0:03:04][%cal Bd1e1,Be1e2,Be2c2][%mdl 32]} Qb4 {[%emt 0:00:59]} 26. Re3 {[%emt 0:01:04]} Qc5 {[%emt 0:03:34]} 27. h4 {[%emt 0:00:15]} a6 {[%emt 0:00:13]} 28. R1e2 {[%emt 0:01:11]} b5 {[%emt 0:01:13]} 29. axb5 {[%emt 0:00:10]} cxb5 {[%emt 0:01:34]} 30. cxb5 {[%emt 0:00:26]} axb5 {[%emt 0:01:30]} 31. Rc2 {[%emt 0:01:37]} Qb4 {[%emt 0:01:56]} 32. Rce2 {[%emt 0:01:03][%cal Oh4h5]} Rc8 {[%emt 0:04:07]} 33. Rc2 {[%emt 0:01:12]} Ree8 {[%emt 0:02:08][%cal Be6e8,Be8c8,Bc8c7,Bc7d7][%mdl 32]} 34. Rxc8 {[%emt 0:01:01]} Rxc8 {[%emt 0:00:02]} 35. e5 {[%emt 0:00:50]} (35. Qd5 $5) 35... dxe5 {[%emt 0:01:17]} 36. Nxe5 {[%emt 0:00:10]} Qc5 {[%emt 0:00:47]} 37. Qd7 $36 {[%emt 0:00:53][%mdl 2048] White is pushing.} Rc7 {[%emt 0:07:39]} 38. Qd8+ {[%emt 0:00:07]} Kh7 {[%emt 0:00:19]} 39. Nf3 {[%emt 0:00:45]} Qc6 {[%emt 0:01:00]} 40. h5 {[%emt 0:00:43]} Rd7 {[%emt 0:03:42]} 41. hxg6+ {[%emt 0:00:51]} fxg6 {[%emt 0:00:20]} 42. Qe8 {[%emt 0:04:22]} Qd5 {[%emt 0:00:18][%mdl 8192]} (42... Qb7 $11) 43. Re6 $18 {[%emt 0:02:46]} Qd3 {[%emt 0:11:47] [#]} 44. Ne1 $1 {[%emt 0:03:15]} Qd5+ {[%emt 0:00:05]} 45. Nf3 $2 {[%emt 0:00:04]} (45. Kg1 $18 Rd8 46. Qxg6+ Kh8 47. Re7) 45... Qd3 $14 {[%emt 0:00:24][%cal Od7d8]} 46. Ne1 $2 {[%emt 0:00:03][%mdl 8192]} (46. Nh4 $14) 46... Qd5+ $18 {[%emt 0:00:09] White now steadily converts the win.} 47. Kg1 {[%emt 0:02:10]} Rd8 {[%emt 0:01:49]} 48. Qxg6+ {[%emt 0:00:24]} Kh8 {[%emt 0:00:20]} 49. Re7 {[%emt 0:07:53][%csl Ge7][%cal Rg6g7]} Rg8 {[%emt 0:01:15]} (49... Qd4 $142 50. Nd3 (50. Re8+ Rxe8 51. Qxe8+ Kh7 $18) 50... Rf8) 50. Nd3 {[%emt 0:01:33][%cal Od3e5]} Qg5 {[%emt 0:07:34]} 51. Qe4 {[%emt 0:01:16][%cal Od3e5]} Rf8 {[%emt 0:00:47] [#] Black is weak on the light squares} 52. Ne5 $1 {[%emt 0:07:08]} Kg8 {[%emt 0:00:28]} 53. Ng6 {[%emt 0:01:03]} Rd8 {[%emt 0:03:50]} 54. Nf4 {[%emt 0:01:48]} Rf8 {[%emt 0:00:27][%cal Of8f4]} 55. Rb7 {[%emt 0:01:14]} Qf5 {[%emt 0:01:29] Wards off Ne6} 56. Qe6+ {[%emt 0:00:49]} Rf7 {[%emt 0:01:21]} 57. Qe8+ {[%emt 0:00:39]} Bf8 {[%emt 0:01:05]} 58. Rxb5 {[%emt 0:00:52]} Qc2 {[%emt 0:01:27]} (58... Re7 {keeps fighting.} 59. Qc6 Re1+ 60. Kh2 Qe4 61. Qd5+ Qxd5 62. Nxd5 (62. Rxd5 Rb1 $18) 62... Re2) 59. Qe6 {[%emt 0:00:55]} Qd1+ {[%emt 0:00:51]} 60. Kg2 {[%emt 0:00:09]} Qd7 {[%emt 0:00:07] Repels Rb7} 61. Qc4 {[%emt 0:00:39]} Bd6 {[%emt 0:01:17]} 62. Rd5 {[%emt 0:01:01]} Qb7 {[%emt 0:00:00]} 63. Ne2 {[%emt 0:00:35]} Be5 {[%emt 0:04:07]} 64. Kg1 {[%emt 0:00:25]} Qb6 {[%emt 0:00:54]} (64... Qe7 $142 65. Rc5 Qf6 66. Qg4+ Kh8 67. Rc8+ Rf8 68. Rxf8+ Qxf8) 65. Rc5 {[%emt 0:00:29]} ({And not} 65. Rxe5 Qxf2+ 66. Kh1 Qf3+ 67. Kh2 (67. Kg1 Qf2+ 68. Kh1 Qf3+ 69. Kh2 Qf2+ 70. Kh1 $11) 67... Qf2+ 68. Kh1 Qf3+ 69. Kh2 Qf2+ 70. Kh3 Qf1+ 71. Kg4 Qf3+ 72. Kh3 Qh1+ 73. Kg4 Qf3+ 74. Kh3 Qh1+ 75. Kg4 Qf3+ $11) 65... Bd6 {[%emt 0:00:58]} (65... Kg7 $142 66. Qg4+ (66. Rxe5 Qxf2+ 67. Kh1 Qe1+ 68. Kh2 Rf2+ 69. Kh3 Qh1+ 70. Kg4 Qf3+ 71. Kh3 Qg2+ 72. Kg4 Qf3+ 73. Kh3 Qh1+ 74. Kg4 Qf3+ $11) 66... Kf8) 66. Rf5 {[%emt 0:00:26] White is clearly winning.} Qc7 {[%emt 0:00:24]} 67. Qxf7+ {[%emt 0:00:33]} Qxf7 {[%emt 0:00:05]} 68. Rxf7 {[%emt 0:00:02]} Kxf7 {[%emt 0:00:06][%mdl 4096] Endgame KB-KN. White is two pawns up.} 69. Kg2 {[%emt 0:00:26]} Ke6 {[%emt 0:00:01]} 70. Kf3 {[%emt 0:00:28] and Kg4 should not be overlooked} Kd5 {[%emt 0:00:23]} 71. Kg4 {[%emt 0:00:33]} Ke4 {[%emt 0:00:04]} 72. Nf4 {[%emt 0:00:21]} Bc5 {[%emt 0:00:43]} 73. f3+ {[%emt 0:00:18][%cal Bf2f3,Bf3f4][%mdl 32]} Ke3 {[%emt 0:00:04]} 74. Ne6 {[%emt 0:01:06]} Bd6 {[%emt 0:00:12]} 75. Ng7 {[%emt 0:00:16] White wants to mate with Nf5+.} Kf2 {[%emt 0:00:15]} 76. Nf5 {[%emt 0:00:17]} Bf8 {[%emt 0:00:05]} 77. f4 {[%emt 0:00:22] Weighted Error Value: White=0.24 (precise) /Black=0.48  Loses game:     	---       	Black=1      Missed win:     	White=1     	---        Mistake:       	White=1     	Black=4      Inaccurate:     	White=6     	Black=5      OK:         	White=25    	Black=21     Best:        	White=2     	Black=3      Strong:       	White=2     	---} 1-0

[Event "Karel Janecek Open 2025"]
[Site "Prague"]
[Date "2025.03.04"]
[Round "6.10"]
[White "Isik, Alparslan"]
[Black "Filgueiras, Nathan Felipe"]
[Result "1/2-1/2"]
[Annotator "TA"]
[ECO "D61"]
[WhiteElo "2477"]
[BlackElo "2335"]
[PlyCount "160"]
[EventDate "2025.02.21"]
[EventType "swiss"]
[EventCountry "CZE"]
[SourceTitle "playchess.com"]
[Source "ChessBase"]
[SourceQuality "1"]
[TimeControl "40/5400+30:1800+30"]

{[%evp 16,160,25,15,12,18,46,26,59,39,34,0,0,7,0,0,29,16,11,-9,-11,-31,0,0,0,0,0,0,0,0,0,0,41,32,25,17,20,22,9,6,6,6,21,21,9,6,8,8,7,8,6,7,6,0,6,6,9,6,17,6,6,0,0,0,0,0,0,-5,0,0,0,0,6,0,0,0,0,0,0,0,0,0,0,0,0,0,5,5,5,5,5,5,5,5,5,5,5,5,5,5,5,0,0,0,0,0,98,98,116,0,0,0,0,0,0,0,0,0,0,0,0,0,0,0,0,0,0,0,0,0,0,0,0,0,0,0,0,0,0,0,0,0,0,0,0,0,0]} 1. d4 {[%emt 0:02:33]} Nf6 {[%emt 0:04:03]} 2. c4 {[%emt 0:00:00]} e6 {[%emt 0:00:06]} 3. Nf3 {[%emt 0:00:01]} d5 {[%emt 0:01:25]} 4. Nc3 {[%emt 0:01:20]} c6 {[%emt 0:00:19]} 5. Bg5 {[%emt 0:00:17][%cal Bc1g5,Bg5h4,Bh4g3][%mdl 32]} h6 {[%emt 0:00:32]} 6. Bh4 {[%emt 0:00:16]} Be7 {[%emt 0:01:46]} 7. e3 {[%emt 0:00:12]} Nbd7 {[%emt 0:01:10]} 8. Qc2 {[%emt 0:00:13]} O-O {[%emt 0:00:25]} 9. a3 {[%emt 0:00:08]} Ne8 {[%emt 0:06:12] D61: Queen's Gambit Declined: Classical: 7 Qc2.} 10. Bg3 {[%emt 0:01:41]} Bd6 {[%emt 0:08:55]} 11. Bd3 {[%emt 0:02:18]} Qe7 $146 {[%emt 0:12:31] White has an edge.} (11... dxc4 12. Bxc4 Nb6 13. Bd3 Nd5 14. Ne5 Nef6 15. O-O Nh5 16. Ne4 Nxg3 17. hxg3 Bxe5 18. dxe5 {1-0 Arnaudov,P (2226)-Dimitrov,R Plovdiv Tringov Memorial 2004 (7)}) 12. cxd5 {[%emt 0:04:20]} exd5 {[%emt 0:00:48]} 13. O-O {[%emt 0:00:21]} Bxg3 {[%emt 0:00:37]} 14. hxg3 {[%emt 0:00:03]} Nd6 {[%emt 0:01:02]} 15. b4 {[%emt 0:00:15]} a6 {[%emt 0:02:40]} 16. a4 {[%emt 0:01:19]} Nb6 {[%emt 0:03:53]} 17. Rab1 {[%emt 0:05:26]} Nbc4 {[%emt 0:02:34]} 18. Rb3 {[%emt 0:02:19] Repels Na3} Bg4 {[%emt 0:06:39]} (18... b5 {seems wilder.} 19. e4 bxa4 20. Nxa4 dxe4 21. Bxc4 exf3 22. Re3 Qb7) 19. b5 {[%emt 0:12:27]} axb5 {[%emt 0:01:46]} 20. axb5 {[%emt 0:00:02]} Qf6 {[%emt 0:01:31]} 21. bxc6 {[%emt 0:00:56]} bxc6 {[%emt 0:00:23]} 22. Nd2 {[%emt 0:06:05]} Nxd2 {[%emt 0:07:04]} 23. Qxd2 {[%emt 0:03:03]} Rfb8 {[%emt 0:00:31]} 24. Rxb8+ {[%emt 0:01:05]} Rxb8 {[%emt 0:00:07]} 25. Rc1 {[%emt 0:03:33]} Bf5 {[%emt 0:01:11]} 26. Bf1 {[%emt 0:00:24]} Ne4 {[%emt 0:03:27]} 27. Nxe4 {[%emt 0:00:13]} Bxe4 {[%emt 0:00:07]} 28. Qc3 {[%emt 0:04:47]} Rb1 {[%emt 0:02:40]} 29. Rxb1 {[%emt 0:07:03]} (29. Qxc6 $2 {is the wrong capture.} Qxc6 30. Rxc6 Bd3 $19) 29... Bxb1 $11 {[%emt 0:00:06][%mdl 4096] Endgame KQB-KQB} 30. Qb3 {[%emt 0:01:03]} Bf5 {[%emt 0:01:42]} 31. Qb8+ {[%emt 0:00:06]} Kh7 {[%emt 0:00:04]} 32. Qc7 {[%emt 0:01:29]} Qe6 {[%emt 0:01:23]} 33. Be2 {[%emt 0:02:32]} Qd7 {[%emt 0:02:45]} 34. Qb8 {[%emt 0:02:07]} Qe7 {[%emt 0:01:34]} 35. Qb6 {[%emt 0:00:46]} Bd7 {[%emt 0:02:48]} 36. Qc7 {[%emt 0:00:51]} Qe6 {[%emt 0:01:25] Prevents Bg4} 37. Ba6 {[%emt 0:03:38]} g6 {[%emt 0:01:15]} 38. Bb7 {[%emt 0:03:12]} Kg7 {[%emt 0:00:35]} 39. Kh2 {[%emt 0:03:14]} h5 {[%emt 0:02:28]} 40. f3 {[%emt 0:08:53]} Be8 {[%emt 0:07:08]} 41. Qf4 {[%emt 0:30:14]} Qf6 {[%emt 0:32:42]} 42. Bc8 {[%emt 0:00:41]} g5 {[%emt 0:00:00]} 43. Qc7 {[%emt 0:00:00]} Kf8 {[%emt 0:00:00]} 44. Qa5 {[%emt 0:00:00]} Qe7 {[%emt 0:00:00]} 45. Qc3 {[%emt 0:00:00]} Bd7 {[%emt 0:00:00]} 46. Ba6 {[%emt 0:00:00]} h4 {[%emt 0:00:00]} 47. gxh4 {[%emt 0:05:32]} gxh4 {[%emt 0:00:00]} 48. Bf1 {[%emt 0:04:25]} Qd6+ {[%emt 0:00:00]} 49. f4 {[%emt 0:00:10]} Qg6 {[%emt 0:00:02]} 50. Qe1 {[%emt 0:00:14]} Qf6 {[%emt 0:00:17]} 51. Bd3 {[%emt 0:00:38]} Bg4 {[%emt 0:02:39]} 52. Qf2 {[%emt 0:01:25]} Qh6 {[%emt 0:01:50]} 53. Bc2 {[%emt 0:03:10]} Ke7 {[%emt 0:02:48]} 54. Qe1 {[%emt 0:00:44]} Qf6 {[%emt 0:01:04]} 55. Qa5 {[%emt 0:03:03]} Bd7 {[%emt 0:01:54]} 56. Qa3+ {[%emt 0:03:22]} Ke8 {[%emt 0:01:47]} 57. Qa8+ {[%emt 0:00:24]} Ke7 {[%emt 0:02:31]} 58. Qg8 {[%emt 0:00:49]} Bf5 {[%emt 0:01:42]} 59. Bxf5 {[%emt 0:02:58]} Qxf5 {[%emt 0:00:02] KQ-KQ} 60. Qg7 {[%emt 0:00:11]} Qf6 {[%emt 0:01:26] [#]} (60... Kd7 $11 {remains equal.}) 61. Qg4 $1 $16 {[%emt 0:01:56]} Kd6 {[%emt 0:00:43] [#]} 62. f5 {[%emt 0:00:31]} (62. Qc8 $1 $16) 62... Qh6 $11 {[%emt 0:00:27] The position is equal.} 63. Qf3 {[%emt 0:00:17]} Ke7 {[%emt 0:00:54]} 64. e4 {[%emt 0:00:10]} dxe4 {[%emt 0:00:16]} 65. Qxe4+ {[%emt 0:00:01]} Kd7 {[%emt 0:00:15]} 66. Kh3 {[%emt 0:00:51]} Qg5 {[%emt 0:00:43]} 67. Qg4 {[%emt 0:00:01] Active counter play!} Qxg4+ {[%emt 0:01:34]} 68. Kxg4 {[%emt 0:00:02]} Kd6 {[%emt 0:00:07]} 69. Kxh4 {[%emt 0:02:08] K3P-KPP. White is a pawn up.} Kd5 {[%emt 0:00:04]} 70. Kg5 {[%emt 0:00:14]} Kxd4 {[%emt 0:00:08] ( -> ...c5). KPP-KPP} 71. Kf6 {[%emt 0:00:05]} c5 $1 {[%emt 0:00:32] ( -> ...c4)} (71... Ke4 72. g4 (72. Kxf7 Kxf5 73. g4+ Kf4 $11) 72... c5 73. Kxf7 $14) 72. Kxf7 {[%emt 0:00:26] KPP-KP. White is a pawn up.} c4 {[%emt 0:00:03] ( -> ...c3)} 73. f6 {[%emt 0:00:04]} c3 {[%emt 0:00:03] ( -> ...c2)} 74. Kg8 {[%emt 0:00:33]} (74. Kg6 $5 c2 $8 75. f7 $11) 74... c2 {[%emt 0:00:06]} 75. f7 {[%emt 0:00:02]} c1=Q {[%emt 0:00:05] ( -> ...Qg5+)} 76. f8=Q {[%emt 0:00:03] g4 would now be deadly.} Qg5+ {[%emt 0:00:48]} 77. Qg7+ {[%emt 0:00:04]} Qxg7+ {[%emt 0:00:04]} 78. Kxg7 {[%emt 0:00:04]} Ke4 {[%emt 0:00:04]} 79. g4 {[%emt 0:00:04] Threatening mate with Kf6.} (79. Kh6 $5 Kf4 $8 80. Kh7 $11) 79... Kf4 {[%emt 0:00:03]} 80. g5 {[%emt 0:00:02]} Kxg5 {[%emt 0:00:03] Weighted Error Value: White=0.03 (flawless) /Black=0.08 (flawless)   Mistake:       	White=1     	Black=1      Inaccurate:     	White=1     	Black=5      OK:         	White=25    	Black=34     Best:        	White=3     	Black=10     Strong:       	White=1     	Black=1} 1/2-1/2